bitfinex/quotes_SOLUSD_20260108
["timestamp","ask_amount","ask_price","bid_price","bid_amount"]
[1767904063928,3.43607667,136.56,136.51,0.65326894]
[1767904064817,3.43607667,136.55,136.52,0.65326894]
[1767904066142,7.42206967,136.56,136.52,0.65326894]
[1767904066333,3.43607667,136.55,136.52,0.65326894]
[1767904066533,3.43607667,136.55,136.52,7.97818139]
[1767904066719,7.32241992,136.57,136.53,0.65326894]
[1767904066915,3.43607667,136.56,136.53,0.65326894]
[1767904067111,3.43607667,136.57,136.53,0.65326894]
[1767904067317,0.24298016,136.6,136.54,0.65326894]
[1767904067517,3.43607667,136.6,136.55,0.65326894]
[1767904067750,3.43607667,136.59,136.55,0.65326894]
[1767904068116,0.099,136.61,136.55,0.65326894]
[1767904068424,3.43607667,136.61,136.56,0.65326894]
[1767904068927,31.92142529,136.63,136.56,0.65326894]
[1767904068928,3.43607667,136.6,136.56,0.65326894]
[1767904069128,3.43607667,136.59,136.56,0.65326894]
[1767904070818,3.67761702,136.59,136.55,7.97641916]
[1767904071318,0.099,136.62,136.57,0.65326894]
[1767904071537,3.43607667,136.61,136.57,0.65326894]
[1767904072736,3.43607667,136.59,136.53,22.03073538]
[1767904072934,3.43607667,136.59,136.55,0.65326894]
[1767904072935,3.67620587,136.59,136.55,0.65326894]
[1767904073127,3.67620587,136.59,136.55,7.97656382]
[1767904075619,10.75672481,136.6,136.56,0.65326894]
[1767904075824,10.85572481,136.6,136.56,0.65326894]
[1767904076250,3.53507667,136.6,136.56,0.65326894]
[1767904076834,0.099,136.6,136.56,0.65326894]
[1767904077147,3.53507667,136.6,136.56,0.65326894]
[1767904078349,3.53507667,136.6,136.56,7.97597573]
[1767904079626,10.85583223,136.6,136.56,7.97597573]
[1767904079830,3.53507667,136.6,136.56,7.97597573]
[1767904080757,10.85585883,136.6,136.56,7.97597573]
[1767904080962,3.67761702,136.59,136.55,7.97634441]
[1767904081263,3.67905683,136.59,136.56,7.32277382]
[1767904081565,3.43607667,136.58,136.55,0.65326894]
[1767904081750,3.67905683,136.59,136.55,0.65326894]
[1767904082343,3.67905683,136.59,136.55,7.97652451]
[1767904082668,3.43607667,136.59,136.56,0.71792054]
[1767904082831,10.99879785,136.59,136.56,0.71792054]
[1767904083038,10.7572575,136.59,136.56,0.71792054]
[1767904083341,3.43607667,136.59,136.56,0.71792054]
[1767904083546,7.41990401,136.6,136.56,0.71792054]
[1767904083547,121.39799671,136.63,136.57,0.71792054]
[1767904083865,10.75571637,136.62,136.58,0.71792054]
[1767904085346,3.43607667,136.61,136.58,0.71792054]
[1767904085964,3.43607667,136.61,136.57,0.69733441]
[1767904085965,3.43607667,136.6,136.57,0.69733441]
[1767904086757,3.43607667,136.6,136.57,8.01957185]
[1767904087165,3.43607667,136.6,136.58,0.69733441]
[1767904087857,7.56261986,136.62,136.58,0.69733441]
[1767904088065,10.7553011,136.63,136.58,0.69733441]
[1767904089339,3.43607667,136.62,136.58,0.69733441]
[1767904092064,10.7558554,136.62,136.58,0.69733441]
[1767904093064,3.43607667,136.61,136.58,0.69733441]
[1767904093758,3.43607667,136.6,136.56,0.69733441]
[1767904094164,0.10042541,136.61,136.56,8.02008906]
[1767904094365,3.53650208,136.61,136.57,0.69733441]
[1767904094544,3.43607667,136.61,136.57,0.69733441]
[1767904095659,10.8556323,136.61,136.57,0.69733441]
[1767904095858,3.43607667,136.63,136.58,0.69733441]
[1767904096162,3.43607667,136.62,136.58,0.69733441]
[1767904096354,3.43607667,136.63,136.58,0.69733441]
[1767904096542,16.79607667,136.64,136.59,0.69733441]
[1767904097063,3.43607667,136.64,136.59,0.69733441]
[1767904097265,10.75483945,136.64,136.6,0.69733441]
[1767904098839,0.099,136.67,136.61,0.69733441]
[1767904099147,3.43607667,136.67,136.62,0.69733441]
[1767904100163,7.51650368,136.68,136.63,7.31903681]
[1767904100456,10.95258035,136.68,136.64,0.69733441]
[1767904100654,9.71203186,136.68,136.64,0.63733442]
[1767904101251,9.87043185,136.68,136.64,0.63733442]
[1767904102160,2.19552818,136.67,136.64,0.63733442]
[1767904103656,2.19552818,136.67,136.64,0.5773345]
[1767904104050,2.19552818,136.67,136.64,0.51733452]
[1767904104557,0.2,136.68,136.64,7.31826935]
[1767904104867,0.61974024,136.68,136.64,7.31826935]
[1767904105963,0.61974024,136.68,136.64,8.01560376]
[1767904106944,0.2,136.68,136.65,0.69733441]
[1767904108261,0.2,136.68,136.65,8.0149724]
[1767904109666,0.2,136.68,136.66,0.69733441]
[1767904110054,2.81526842,136.68,136.64,7.31850117]
[1767904110257,0.10535098,136.65,136.61,0.69733441]
[1767904110454,2.30087916,136.65,136.62,7.31926185]
[1767904110654,2.19552818,136.64,136.62,7.31926185]
[1767904110875,2.19552818,136.64,136.61,8.01720481]
[1767904112976,2.30087916,136.65,136.61,8.01720481]
[1767904114575,2.30087916,136.65,136.62,0.71342682]
[1767904114780,7.74068089,136.66,136.62,0.71342682]
[1767904115076,2.19552818,136.65,136.62,0.71342682]
[1767904115580,7.74068089,136.66,136.62,0.71342682]
[1767904115749,2.19552818,136.65,136.62,0.71342682]
[1767904116070,7.74068089,136.66,136.62,0.71342682]
[1767904116282,2.61850823,136.66,136.62,8.03267142]
[1767904116779,2.19552818,136.65,136.62,0.71342682]
[1767904120578,2.29452818,136.65,136.62,0.71342682]
[1767904121385,0.099,136.65,136.62,0.71342682]
[1767904121574,2.29452818,136.65,136.62,0.71342682]
[1767904122581,2.19552818,136.63,136.6,0.71342682]
[1767904122765,2.19552818,136.62,136.6,0.71342682]
[1767904124765,2.19552818,136.62,136.6,0.71342682]
[1767904124963,2.19552818,136.63,136.6,8.03402521]
[1767904125466,7.74118632,136.65,136.61,0.71342682]
[1767904125666,2.19552818,136.64,136.61,0.71342682]
[1767904126881,2.19552818,136.65,136.62,0.71342682]
[1767904127293,9.93616949,136.66,136.62,0.71342682]
[1767904127483,2.19552818,136.65,136.62,0.71342682]
[1767904127668,2.19552818,136.66,136.62,0.71342682]
[1767904128772,2.19552818,136.66,136.63,0.71342682]
[1767904131084,7.41611869,136.67,136.63,0.71342682]
[1767904131272,2.19552818,136.67,136.64,0.71342682]
[1767904131478,2.81850823,136.68,136.64,0.65342683]
[1767904131790,0.2,136.68,136.64,2.19552818]
[1767904132085,0.2,136.68,136.65,2.19552818]
[1767904133275,0.2,136.68,136.65,7.3179656]
[1767904133476,0.2,136.68,136.66,0.71342682]
[1767904135789,9.99349205,136.71,136.67,0.71342682]
[1767904135966,0.66186019,136.72,136.67,0.71342682]
[1767904136272,10.17131064,136.73,136.68,0.71342682]
[1767904136468,0.66186019,136.73,136.69,0.71342682]
[1767904136673,0.66186019,136.73,136.69,2.19552818]
[1767904137083,10.1706226,136.74,136.69,2.19552818]
[1767904137385,10.1706226,136.74,136.68,2.19552818]
[1767904137590,0.66186019,136.74,136.69,2.19552818]
[1767904137779,0.66186019,136.74,136.7,2.19552818]
[1767904137979,0.66186019,136.74,136.7,9.5104585]
[1767904138168,0.66186019,136.74,136.7,7.31493032]
[1767904138589,0.66186019,136.74,136.7,7.25493033]
[1767904139285,7.9751302,136.74,136.7,7.25493033]
[1767904139468,14.02186019,136.76,136.71,0.71342682]
[1767904139670,0.65703467,136.74,136.7,7.25493033]
[1767904139970,0.65703467,136.74,136.7,7.96835715]
[1767904140175,0.65703467,136.74,136.71,0.71342682]
[1767904140499,7.97019373,136.74,136.71,0.71342682]
[1767904140684,0.18408586,136.73,136.69,8.02908012]
[1767904141190,0.18408586,136.73,136.7,0.71342682]
[1767904142590,0.18408586,136.73,136.7,0.65342689]
[1767904143094,0.18408586,136.73,136.7,7.96863883]
[1767904143270,2.19552818,136.74,136.7,7.31521194]
[1767904143470,2.38069288,136.74,136.7,7.31521194]
[1767904144297,9.69389895,136.74,136.7,7.31521194]
[1767904144478,2.90616524,136.73,136.69,7.31568059]
[1767904144795,2.90616524,136.73,136.69,8.01599071]
[1767904145500,2.90616524,136.73,136.7,0.70031012]
[1767904146184,2.90616524,136.73,136.7,8.01554494]
[1767904147696,0.71063706,136.73,136.7,8.01554494]
[1767904147997,2.90616524,136.73,136.7,8.01554494]
[1767904148418,0.19041943,136.72,136.69,7.3155712]
[1767904148581,2.38594761,136.72,136.69,0.6589975]
[1767904149383,2.89880249,136.71,136.68,21.33530638]
[1767904149772,2.89880249,136.71,136.68,7.97530638]
[1767904150416,2.89880249,136.71,136.68,0.6589975]
[1767904150714,2.89880249,136.71,136.67,7.31663627]
[1767904150715,0.19770855,136.7,136.67,7.97563377]
[1767904151381,2.89880249,136.71,136.67,7.97563377]
[1767904152905,2.39323673,136.7,136.66,14.0189975]
[1767904153108,2.19552818,136.69,136.66,14.0189975]
[1767904153300,2.19552818,136.69,136.66,0.6589975]
[1767904154504,2.19552818,136.69,136.66,7.97624265]
[1767904154988,2.39323673,136.7,136.66,7.97624265]
[1767904157187,2.39323673,136.7,136.67,0.6589975]
[1767904158409,2.39323673,136.7,136.67,0.59899751]
[1767904158998,2.39323673,136.7,136.67,7.91586258]
[1767904162515,3.62680331,136.7,136.67,7.91586258]
[1767904163811,4.13236907,136.72,136.68,0.6589975]
[1767904165696,4.13236907,136.73,136.68,0.6589975]
[1767904165915,4.13236907,136.73,136.69,7.97482162]
[1767904166897,4.13236907,136.73,136.7,0.6589975]
[1767904167097,4.13236907,136.73,136.7,0.59899752]
[1767904168316,4.13236907,136.73,136.7,7.9142304]
[1767904168519,3.42909476,136.72,136.7,0.59899752]
[1767904169014,3.42909476,136.72,136.7,0.53899757]
[1767904169617,3.42909476,136.72,136.7,0.47899759]
[1767904170116,3.86440321,136.72,136.68,7.31610406]
[1767904170323,4.12968941,136.71,136.68,7.31610406]
[1767904170900,3.42909476,136.7,136.68,7.31610406]
[1767904171110,3.42909476,136.7,136.67,13.36]
[1767904171111,3.42909476,136.7,136.67,20.67665798]
[1767904171306,3.42909476,136.7,136.66,18.29288107]
[1767904171307,4.12706308,136.69,136.64,18.29556009]
[1767904171505,4.12706308,136.69,136.66,0.6589975]
[1767904171706,3.42909476,136.68,136.66,0.6589975]
[1767904171905,0.69796832,136.69,136.66,0.6589975]
[1767904172105,3.42909476,136.68,136.66,0.6589975]
[1767904173397,3.42909476,136.69,136.66,0.6589975]
[1767904176832,3.42909476,136.69,136.67,0.66792186]
[1767904177018,3.42909476,136.69,136.67,0.60792188]
[1767904177931,4.15162721,136.7,136.67,0.60792188]
[1767904179737,0.72253245,136.7,136.67,0.60792188]
[1767904181327,4.15162721,136.7,136.67,0.60792188]
[1767904184332,3.42909476,136.71,136.68,0.66792186]
[1767904184513,3.42909476,136.71,136.68,0.60792187]
[1767904185125,3.96413762,136.71,136.68,0.60792187]
[1767904188432,3.96413762,136.71,136.68,0.54792191]
[1767904188732,3.42909476,136.7,136.68,0.54792191]
[1767904189035,0.59444282,136.69,136.66,7.31718523]
[1767904189227,3.42909476,136.7,136.66,7.31718523]
[1767904190434,3.42909476,136.7,136.67,7.98474059]
[1767904191312,0.72253245,136.71,136.67,7.98474059]
[1767904191736,4.15162721,136.71,136.67,7.98474059]
[1767904192411,4.15162721,136.74,136.69,0.66792186]
[1767904192620,0.72253245,136.74,136.69,0.54792195]
[1767904192820,0.72253245,136.74,136.69,0.48792196]
[1767904193015,4.15162721,136.74,136.69,0.48792196]
[1767904193221,0.72253245,136.73,136.69,0.48792196]
[1767904193841,0.72253245,136.73,136.69,7.31565902]
[1767904194825,0.72253245,136.73,136.7,0.66792186]
[1767904195027,0.72253245,136.73,136.7,0.60792187]
[1767904195327,4.15162721,136.74,136.7,0.60792187]
[1767904195923,0.72253245,136.74,136.7,7.31481282]
[1767904196218,0.72253245,136.75,136.7,29.03212996]
[1767904196417,0.72253245,136.75,136.7,42.39212996]
[1767904196934,0.72253245,136.75,136.71,0.66792186]
[1767904197336,0.72253245,136.75,136.71,7.98216719]
[1767904197538,0.72253245,136.75,136.72,0.66792186]
[1767904197741,0.72253245,136.75,136.72,0.60792187]
[1767904198442,0.72253245,136.74,136.71,7.31424533]
[1767904199734,4.15162721,136.73,136.7,7.31506803]
[1767904200319,0.72253245,136.75,136.71,0.66792186]
[1767904200541,0.72253245,136.78,136.73,0.66792186]
[1767904200729,4.01029813,136.8,136.77,0.66792186]
[1767904200929,0.2,136.81,136.8,0.66792186]
[1767904201138,0.2,136.82,136.8,4.09701662]
[1767904201423,0.1,136.83,136.81,0.66792186]
[1767904201647,0.1,136.84,136.82,0.66792186]
[1767904202027,0.82253245,136.84,136.8,7.97785206]
[1767904202356,0.1,136.84,136.81,0.98437994]
[1767904202542,0.7857976,136.84,136.8,8.009987]
[1767904203128,0.7857976,136.84,136.8,11.43908176]
[1767904206647,0.1,136.87,136.84,0.625]
[1767904207119,0.70750543,136.86,136.83,13.36]
[1767904207823,0.1,136.89,136.87,7.93105139]
[1767904208048,0.80750543,136.89,136.87,7.30605139]
[1767904208266,0.80750543,136.89,136.86,20.64667449]
[1767904208551,0.1,136.89,136.87,7.93114063]
[1767904208725,4.23660019,136.91,136.87,11.36023539]
[1767904208726,0.1,136.91,136.87,11.36023539]
[1767904208927,0.1,136.91,136.89,0.625]
[1767904209230,0.1,136.91,136.88,13.34]
[1767904209953,0.1,136.91,136.88,20.645589]
[1767904210553,0.80750543,136.91,136.88,13.34]
[1767904211049,0.80750543,136.91,136.88,20.64554053]
[1767904212048,0.80750543,136.91,136.88,13.34]
[1767904213025,0.70750543,136.9,136.85,17.39409476]
[1767904213229,0.70750543,136.9,136.86,3.42909476]
[1767904213654,0.70750543,136.9,136.86,10.73549876]
[1767904213960,0.70750543,136.9,136.87,7.30596251]
[1767904214466,0.70750543,136.9,136.87,7.93096251]
[1767904214660,0.1,136.91,136.88,0.625]
[1767904214836,0.1,136.91,136.88,4.05409476]
[1767904215039,0.70750543,136.95,136.91,0.525]
[1767904215249,0.70750543,136.95,136.91,16.76909476]
[1767904216066,0.70750543,136.95,136.91,13.34]
[1767904216244,0.70750543,136.94,136.9,13.34]
[1767904216438,0.70750543,136.93,136.9,16.76909476]
[1767904216666,0.70750543,136.93,136.91,7.30406836]
[1767904217040,0.70750543,136.95,136.91,7.30406836]
[1767904217668,0.70750543,136.93,136.84,7.30334767]
[1767904217849,0.70750543,136.9,136.86,10.73560957]
[1767904218168,0.70750543,136.9,136.86,7.30651481]
[1767904218463,4.13660019,136.9,136.86,7.30651481]
[1767904218669,193.28417833,136.96,136.87,4.38710036]
[1767904218670,3.42909476,136.93,136.87,4.38710036]
[1767904218878,13.34,136.96,136.89,0.67368246]
[1767904219173,3.42909476,136.94,136.89,0.67368246]
[1767904219349,3.42909476,136.93,136.89,0.67368246]
[1767904219751,7.30253326,136.94,136.89,7.97859005]
[1767904219950,10.73162802,136.94,136.89,7.97859005]
[1767904220572,3.42909476,136.95,136.9,4.10277722]
[1767904220777,0.70750543,136.95,136.91,0.67368246]
[1767904221569,0.70750543,136.95,136.91,0.61368248]
[1767904221880,0.70750543,136.95,136.92,7.30353491]
[1767904222080,0.70750543,136.97,136.92,10.67262967]
[1767904222256,0.70750543,136.96,136.92,10.67262967]
[1767904222876,0.70750543,136.97,136.92,25.50237218]
[1767904223079,0.70750543,136.97,136.93,3.42909476]
[1767904223584,0.70750543,136.97,136.93,4.10277722]
[1767904223977,0.70750543,136.97,136.93,11.40557125]
[1767904224391,11.43758851,136.97,136.93,0.67368246]
[1767904224571,10.19444842,136.97,136.93,0.67368246]
[1767904225264,0.70750543,136.97,136.93,10.16258417]
[1767904225578,0.70750543,136.98,136.94,0.67368246]
[1767904225779,0.70750543,136.98,136.94,0.61368246]
[1767904226174,10.1938,136.98,136.94,0.61368246]
[1767904228867,0.70750543,136.95,136.92,13.34]
[1767904229105,0.70750543,136.94,136.91,7.30402893]
[1767904230489,0.70750543,136.93,136.9,20.64458067]
[1767904230993,0.70750543,136.93,136.9,7.30458067]
[1767904231393,0.70750543,136.93,136.9,7.97826313]
[1767904232189,0.70750543,136.93,136.89,14.01368246]
[1767904232510,0.6692566,136.92,136.89,13.34]
[1767904232794,2.85521127,136.9,136.86,21.33677293]
[1767904233788,2.85521127,136.89,136.85,7.30706508]
[1767904233994,2.85521127,136.89,136.85,7.99739871]
[1767904234382,13.34,136.95,136.86,0.69033363]
[1767904234383,2.85521127,136.91,136.86,0.69033363]
[1767904234702,0.6692566,136.91,136.87,0.69033363]
[1767904234890,0.6692566,136.94,136.89,2.8762883]
[1767904235089,10.15679233,136.96,136.91,2.8762883]
[1767904235295,10.15679233,136.96,136.91,0.69033363]
[1767904235988,0.6692566,136.95,136.91,0.69033363]
[1767904236383,9.48753573,136.96,136.92,0.69033363]
[1767904236798,10.15679233,136.96,136.92,0.69033363]
[1767904237294,0.6692566,136.95,136.91,7.30402176]
[1767904237598,7.97124901,136.95,136.91,7.99435539]
[1767904239995,7.97124901,136.95,136.91,10.18031006]
[1767904241380,7.97124901,136.95,136.91,7.99435539]
[1767904242879,0.6692566,136.95,136.91,7.99435539]
[1767904245199,2.85521127,136.94,136.9,13.34]
[1767904245502,2.85521127,136.94,136.9,20.64458069]
[1767904245699,0.6692566,136.93,136.9,13.34]
[1767904246806,0.6692566,136.94,136.91,7.99424922]
[1767904247194,0.6692566,136.94,136.91,7.30391559]
[1767904247799,0.6692566,136.93,136.9,20.64454413]
[1767904248006,0.6692566,136.93,136.9,13.34]
[1767904248787,0.6692566,136.92,136.88,7.99579123]
[1767904248991,2.85521127,136.92,136.89,7.30506803]
[1767904249899,0.6692566,136.92,136.89,7.30506803]
[1767904253314,0.6692566,136.92,136.88,10.18175104]
[1767904253528,0.6692566,136.97,136.92,0.38750545]
[1767904253813,0.6692566,136.97,136.93,2.18595467]
[1767904254307,0.6692566,136.97,136.93,9.48894932]
[1767904254513,7.97016231,136.97,136.93,9.48894932]
[1767904254715,0.6692566,136.96,136.93,2.18595467]
[1767904255094,0.6692566,136.96,136.93,9.48894938]
[1767904256610,0.6692566,136.96,136.93,2.18595467]
[1767904256917,0.6692566,136.96,136.93,9.4889407]
[1767904258513,0.6692566,137.0,136.95,2.18595467]
[1767904258697,0.6692566,136.98,136.96,2.18595467]
[1767904258898,0.6692566,136.98,136.95,2.18595467]
[1767904260331,0.6692566,136.96,136.92,7.30326045]
[1767904260620,0.6692566,136.97,136.94,2.18595467]
[1767904261206,0.6692566,136.97,136.93,7.30283887]
[1767904261521,0.6692566,136.97,136.93,9.48879354]
[1767904262830,7.97021196,136.97,136.93,2.18595467]
[1767904264016,7.97021196,136.97,136.93,9.48890669]
[1767904267027,0.6692566,136.97,136.93,9.48890669]
[1767904267326,0.6692566,136.97,136.94,2.18595467]
[1767904268229,0.6692566,136.97,136.94,9.48833402]
[1767904268617,9.48609258,136.99,136.94,9.48833402]
[1767904268618,0.70716743,136.98,136.94,9.48833402]
[1767904268925,0.70716743,136.97,136.93,9.4889132]
[1767904269528,0.70716743,136.97,136.92,7.30348098]
[1767904269823,0.70716743,136.97,136.92,9.48943565]
[1767904270230,0.70716743,136.97,136.93,7.30297246]
[1767904271712,0.70716743,136.96,136.92,9.48934141]
[1767904272531,0.70716743,136.96,136.92,7.30338674]
[1767904272914,0.70716743,136.96,136.92,9.48934141]
[1767904274837,0.70716743,136.96,136.93,2.18595467]
[1767904276625,0.72371089,137.01,136.95,2.18595467]
[1767904276930,0.72371089,137.01,136.99,2.18595467]
[1767904277228,0.72371089,137.01,136.98,7.30007753]
[1767904277533,0.72371089,137.01,136.97,9.48659581]
[1767904277831,0.72371089,137.0,136.96,22.82700666]
[1767904278025,0.72371089,136.96,136.91,7.30385663]
[1767904278226,2.18595467,136.94,136.89,8.01618331]
[1767904278431,13.32,136.98,136.9,7.30457589]
[1767904278627,2.18595467,136.94,136.9,7.30457589]
[1767904279027,9.48851118,136.94,136.89,0.71137415]
[1767904279233,2.18595467,136.93,136.89,0.71137415]
[1767904279735,2.18595467,136.92,136.89,0.71137415]
[1767904280127,2.90966556,136.93,136.89,0.71137415]
[1767904280339,2.18595467,136.92,136.89,0.71137415]
[1767904280635,2.18595467,136.93,136.9,0.71137415]
[1767904281137,10.21273669,136.93,136.88,14.05137415]
[1767904281328,10.21273669,136.93,136.89,0.71137415]
[1767904281731,2.18595467,136.92,136.89,0.71137415]
[1767904283547,0.72371089,136.9,136.86,7.30637317]
[1767904283727,7.30371342,136.92,136.85,14.05137415]
[1767904283728,2.87966553,136.89,136.85,14.05137415]
[1767904284048,2.18595467,136.89,136.84,14.33569729]
[1767904284244,2.18595467,136.87,136.82,2.89732882]
[1767904284544,2.18595467,136.87,136.83,13.34]
[1767904284844,2.18595467,136.88,136.83,14.05137415]
[1767904285232,2.18595467,136.88,136.84,7.30780473]
[1767904285745,2.90966556,136.89,136.85,0.71137415]
[1767904285939,0.72371089,136.89,136.85,0.71137415]
[1767904286141,2.90966556,136.89,136.85,0.71137415]
[1767904286652,7.30372731,136.92,136.88,0.71137415]
[1767904286854,0.72371089,136.91,136.87,0.71137415]
[1767904287023,4.14302455,136.9,136.86,13.34]
[1767904287223,0.72371089,136.89,136.86,13.34]
[1767904288130,0.72371089,136.88,136.84,20.64774452]
[1767904288647,0.72371089,136.88,136.84,21.35911867]
[1767904288847,0.69371086,136.88,136.84,21.35911867]
[1767904290049,3.41931366,136.88,136.84,20.64774452]
[1767904290852,4.14302455,136.88,136.84,20.64774452]
[1767904292055,0.72371089,136.88,136.84,20.64774452]
[1767904292227,0.72371089,136.88,136.84,21.35911867]
[1767904293046,8.01593177,136.9,136.86,0.65462573]
[1767904293251,4.1304219,136.89,136.85,13.99462573]
[1767904293750,0.71110824,136.88,136.84,20.64774452]
[1767904293931,0.71110824,136.88,136.84,24.06705818]
[1767904294333,0.71110824,136.88,136.84,24.72168391]
[1767904294751,4.1304219,136.9,136.85,0.65462573]
[1767904295043,0.71110824,136.92,136.88,4.07393939]
[1767904295649,10.72231519,136.93,136.89,0.65462573]
[1767904296229,11.43342343,136.93,136.89,0.65462573]
[1767904296640,0.71110824,136.92,136.88,4.07393939]
[1767904297857,0.71110824,136.92,136.88,11.37951429]
[1767904298060,0.71110824,136.92,136.88,7.96020063]
[1767904298249,0.71110824,136.95,136.9,0.65462573]
[1767904298450,0.71110824,136.95,136.91,4.07393939]
[1767904298651,0.71110824,136.96,136.92,4.07393939]
[1767904299548,110.39978014,137.0,136.93,0.65462573]
[1767904299852,0.71110824,136.99,136.95,7.30193501]
[1767904300037,4.1304219,136.98,136.94,21.29690028]
[1767904300239,0.71110824,136.98,136.94,21.29690028]
[1767904301559,0.71110824,137.0,136.95,8.24065257]
[1767904301861,0.71110824,137.0,136.95,11.65996623]
[1767904302157,0.71110824,136.99,136.95,7.3017037]
[1767904302330,4.1304219,136.99,136.95,7.3017037]
[1767904302759,4.1304219,136.99,136.95,7.95632943]
[1767904302760,0.71110824,136.99,136.95,7.95632943]
[1767904303147,0.71110824,136.99,136.95,11.37564309]
[1767904303349,0.71110824,137.0,136.95,29.63048062]
[1767904303653,4.1304219,137.0,136.95,26.21116696]
[1767904303858,4.1304219,137.0,136.95,29.63048062]
[1767904304260,0.71110824,136.99,136.95,7.95632943]
[1767904305454,0.71110824,136.98,136.94,13.34]
[1767904305764,0.71110824,136.96,136.92,7.30349926]
[1767904305958,0.71110824,136.94,136.9,7.3044079]
[1767904306149,0.71110824,136.94,136.9,20.6444079]
[1767904306461,0.71110824,136.93,136.89,21.29954669]
[1767904306760,0.71110824,136.91,136.89,13.34]
[1767904307750,4.1304219,136.91,136.89,13.34]
[1767904307955,0.71110824,136.91,136.89,13.34]
[1767904308338,4.1304219,136.92,136.89,20.64513046]
[1767904308646,4.1304219,136.94,136.89,21.29975619]
[1767904309049,4.1304219,136.93,136.89,21.29975619]
[1767904311958,4.1304219,136.95,136.9,0.65462573]
[1767904314049,4.1304219,136.95,136.9,7.95874598]
[1767904314660,0.71110824,136.95,136.91,0.65462573]
[1767904314841,0.71110824,136.95,136.9,28.98493865]
[1767904319083,0.71110824,136.94,136.9,7.30412025]
[1767904319372,0.71110824,136.93,136.9,5.85412025]
[1767904320268,3.41931366,136.94,136.9,6.50874598]
[1767904320869,4.08560271,136.95,136.9,6.50874598]
[1767904321858,3.41931366,136.94,136.9,6.50874598]
[1767904322261,3.41931366,136.95,136.92,0.71405037]
[1767904322481,3.41931366,136.96,136.92,0.65405041]
[1767904323168,3.59128351,136.96,136.92,0.65405041]
[1767904323971,3.59128351,136.96,136.92,7.95750024]
[1767904324176,10.89272426,136.96,136.92,7.95750024]
[1767904324674,10.89272426,136.96,136.92,21.29750024]
[1767904326665,0.69402562,136.98,136.94,0.6767231]
[1767904326879,4.11333928,136.98,136.94,0.5902195]
[1767904327078,4.11333928,136.98,136.94,0.55672318]
[1767904327886,11.41392965,136.98,136.94,0.55672318]
[1767904328059,7.99461599,136.98,136.94,0.55672318]
[1767904328461,11.41392965,136.98,136.94,0.55672318]
[1767904328875,0.24974067,136.97,136.93,7.30281891]
[1767904329074,0.68958277,136.96,136.93,7.30281891]
[1767904332187,7.99504226,136.97,136.93,7.97954201]
[1767904332771,0.24974067,136.96,136.93,0.6767231]
[1767904335384,0.71235898,136.93,136.9,0.6767231]
[1767904335587,3.4464443,136.93,136.9,0.6767231]
[1767904337181,0.68958277,136.92,136.89,20.64510017]
[1767904337402,0.25844998,136.89,136.83,0.6767231]
[1767904337688,3.41931366,136.9,136.86,0.6767231]
[1767904337984,3.67345275,136.89,136.85,0.6767231]
[1767904338490,3.67345275,136.89,136.85,7.95657172]
[1767904338867,3.67345275,136.89,136.83,3.7036368]
[1767904338868,0.27660001,136.87,136.82,21.6911419]
[1767904339076,0.27660001,136.87,136.84,7.3074575]
[1767904339374,3.41931366,136.88,136.84,7.3074575]
[1767904339578,11.41849155,136.89,136.84,7.3074575]
[1767904339879,11.41849155,136.89,136.85,7.30724925]
[1767904340478,11.41849155,136.89,136.84,7.98436123]
[1767904342466,11.41849155,136.89,136.84,0.6767231]
[1767904342677,3.41931366,136.85,136.82,0.6767231]
[1767904342989,25.56799104,136.89,136.78,6.8801107]
[1767904342990,4.10106406,136.83,136.79,0.6767231]
[1767904343491,3.70806613,136.82,136.78,14.2167231]
[1767904343872,3.41931366,136.81,136.78,0.8767231]
[1767904344072,13.34,136.87,136.79,0.6767231]
[1767904344073,0.69402562,136.85,136.79,0.6767231]
[1767904344276,0.27660001,136.84,136.79,0.6767231]
[1767904344570,0.27660001,136.84,136.8,7.30993269]
[1767904344888,11.00373914,136.84,136.8,0.6767231]
[1767904348582,9.77455473,136.84,136.8,0.6767231]
[1767904352306,0.29663494,136.82,136.78,0.89856489]
[1767904352592,2.19012925,136.81,136.78,0.89856489]
[1767904352770,2.16012924,136.81,136.78,0.89856489]
[1767904352968,2.45676416,136.82,136.78,0.89856489]
[1767904353592,2.45676416,136.82,136.78,8.20944738]
[1767904353800,25.57452386,136.86,136.8,0.69856489]
[1767904353990,2.19012925,136.85,136.81,0.69856489]
[1767904354307,9.49811511,136.84,136.8,0.69856489]
[1767904354506,10.17190342,136.84,136.8,0.69856489]
[1767904355175,2.85955203,136.82,136.78,0.89856489]
[1767904355393,2.85955203,136.82,136.79,0.69856489]
[1767904355698,2.19012925,136.82,136.79,0.69856489]
[1767904356724,7.30869199,136.83,136.8,0.69856489]
[1767904358300,9.49882124,136.83,136.8,0.69856489]
[1767904358599,9.49882124,136.83,136.78,8.20935565]
[1767904358600,10.16824402,136.83,136.78,8.20935565]
[1767904358773,10.16824402,136.83,136.79,0.69856489]
[1767904359408,10.16824402,136.83,136.8,0.69856489]
[1767904359711,0.67378831,136.85,136.8,0.69856489]
[1767904360013,7.98013217,136.87,136.83,0.69856489]